fUST/lending_fUST_20260421
["ID","MTS","AMOUNT","RATE_DAILY","PERIOD"]
[420946580,1776780641912,-304.0,0.00013699,2]
[420946581,1776780641922,-259.196053,0.00013699,2]
[420946582,1776780641932,-304.0,0.00013699,2]
[420946583,1776780641942,-259.196053,0.00013699,2]
[420946584,1776780641952,-304.0,0.00013699,2]
[420946585,1776780641962,-259.196058,0.00013699,2]
[420946586,1776780641972,-304.0,0.00013699,2]
[420946587,1776780641983,-304.0,0.00013699,2]
[420946588,1776780641992,-304.0,0.00013699,2]
[420946589,1776780642002,-304.0,0.00013699,2]
[420946590,1776780642011,-304.0,0.00013699,2]
[420946591,1776780642021,-304.0,0.00013699,2]
[420946592,1776780642030,-304.0,0.00013699,2]
[420946593,1776780642040,-304.0,0.00013699,2]
[420946594,1776780642049,-304.0,0.00013699,2]
[420946595,1776780642059,-304.0,0.00013699,2]
[420946596,1776780642068,-180.507237,0.00013699,2]
[420946597,1776780642079,-151.0,0.00013699,2]
[420946598,1776780642088,-151.0,0.00013699,2]
[420946599,1776780642098,-151.0,0.00013699,2]
[420946600,1776780642107,-151.0,0.00013699,2]
[420946601,1776780642116,-151.0,0.00013699,2]
[420946602,1776780642126,-151.0,0.00013699,2]
[420946603,1776780642135,-151.0,0.00013699,2]
[420946604,1776780642144,-151.0,0.00013699,2]
[420946605,1776780642154,-151.0,0.00013699,2]
[420946606,1776780642164,-199.408914,0.00013699,2]
[420946607,1776780642173,-307.165233,0.00013699,2]
[420946608,1776780642183,-307.165233,0.00013699,2]
[420946609,1776780642192,-307.165233,0.00013699,2]
[420946610,1776780642201,-307.165233,0.00013699,2]
[420946611,1776780642210,-307.165233,0.00013699,2]
[420946612,1776780642220,-307.165233,0.00013699,2]
[420946613,1776780642229,-307.165233,0.00013699,2]
[420946614,1776780642238,-307.165233,0.00013699,2]
[420946615,1776780642248,-307.165233,0.00013699,2]
[420946616,1776780642258,-307.165233,0.00013699,2]
[420946617,1776780642268,-307.165233,0.00013699,2]
[420946618,1776780642277,-307.165233,0.00013699,2]
[420946619,1776780642286,-307.165233,0.00013699,2]
[420946620,1776780642423,-307.165233,0.00013699,2]
[420946621,1776780642433,-307.165233,0.00013699,2]
[420946622,1776780642443,-307.165233,0.00013699,2]
[420946623,1776780642453,-307.165233,0.00013699,2]
[420946624,1776780642462,-307.165233,0.00013699,2]
[420946625,1776780642472,-307.165233,0.00013699,2]
[420946626,1776780642481,-307.165228,0.00013699,2]
[420946627,1776780642491,-151.0,0.00013699,2]
[420946629,1776780642500,-151.0,0.00013699,2]
[420946630,1776780642509,-151.0,0.00013699,2]
[420946631,1776780642519,-151.0,0.00013699,2]
[420946633,1776780642528,-199.892905,0.00013699,2]
[420946635,1776780642538,-362.642179,0.00013699,2]
[420946637,1776780642547,-362.642179,0.00013699,2]
[420946639,1776780642556,-362.642179,0.00013699,2]
[420946641,1776780642566,-362.642179,0.00013699,2]
[420946643,1776780642575,-362.642179,0.00013699,2]
[420946645,1776780642584,-362.642179,0.00013699,2]
[420946647,1776780642594,-362.642179,0.00013699,2]
[420946648,1776780642603,-362.642179,0.00013699,2]
[420946649,1776780642612,-362.642179,0.00013699,2]
[420946650,1776780642621,-362.642179,0.00013699,2]
[420946651,1776780642631,-362.642179,0.00013699,2]
[420946652,1776780642640,-362.642179,0.00013699,2]
[420946653,1776780642650,-362.642179,0.00013699,2]
[420946654,1776780642661,-362.642179,0.00013699,2]
[420946655,1776780642670,-362.642179,0.00013699,2]
[420946656,1776780642680,-362.642179,0.00013699,2]
[420946657,1776780642689,-362.642179,0.00013699,2]
[420946658,1776780642699,-362.642179,0.00013699,2]
[420946659,1776780642708,-362.642179,0.00013699,2]
[420946660,1776780642718,-362.642182,0.00013699,2]
[420946661,1776780642727,-151.0,0.00013699,2]
[420946662,1776780642737,-151.0,0.00013699,2]
[420946663,1776780642747,-151.0,0.00013699,2]
[420946664,1776780642756,-151.0,0.00013699,2]
[420946665,1776780642765,-151.0,0.00013699,2]
[420946666,1776780642775,-151.0,0.00013699,2]
[420946667,1776780642784,-151.0,0.00013699,2]
[420946668,1776780642793,-151.0,0.00013699,2]
[420946669,1776780642803,-151.0,0.00013699,2]
[420946670,1776780642812,-151.0,0.00013699,2]
[420946671,1776780642821,-151.0,0.00013699,2]
[420946672,1776780642830,-151.308269,0.00013699,2]
[420946673,1776780642840,-151.0,0.00013699,2]
[420946674,1776780642850,-151.0,0.00013699,2]
[420946675,1776780642860,-151.0,0.00013699,2]
[420946676,1776780642870,-151.0,0.00013699,2]
[420946677,1776780642879,-151.0,0.00013699,2]
[420946678,1776780642889,-151.0,0.00013699,2]
[420946679,1776780642898,-151.0,0.00013699,2]
[420946680,1776780642907,-151.0,0.00013699,2]
[420946681,1776780642917,-151.0,0.00013699,2]
[420946682,1776780642926,-151.0,0.00013699,2]
[420946683,1776780642935,-151.0,0.00013699,2]
[420946684,1776780642944,-151.0,0.00013699,2]
[420946685,1776780642954,-240.0,0.00013699,2]
[420946686,1776780642964,-155.597662,0.00013699,2]
[420946687,1776780642974,-155.597662,0.00013699,2]
[420946688,1776780642984,-155.597662,0.00013699,2]
[420946689,1776780642994,-155.597662,0.00013699,2]
[420946690,1776780643003,-155.597662,0.00013699,2]
[420946691,1776780643013,-155.597662,0.00013699,2]
[420946692,1776780643023,-155.597662,0.00013699,2]
[420946693,1776780643032,-155.597662,0.00013699,2]
[420946694,1776780643042,-155.597662,0.00013699,2]
[420946695,1776780643051,-155.597662,0.00013699,2]
[420946696,1776780643060,-155.597662,0.00013699,2]
[420946697,1776780643070,-155.597662,0.00013699,2]
[420946698,1776780643080,-155.597662,0.00013699,2]
[420946699,1776780643090,-155.597662,0.00013699,2]
[420946700,1776780643099,-155.597662,0.00013699,2]
[420946701,1776780643108,-155.597662,0.00013699,2]
[420946702,1776780643118,-155.597662,0.00013699,2]
[420946703,1776780643127,-155.597662,0.00013699,2]
[420946704,1776780643136,-155.597662,0.00013699,2]
[420946705,1776780643145,-155.597653,0.00013699,2]
[420946706,1776780643155,-198.690704,0.00013699,2]
[420946707,1776780643164,-198.690704,0.00013699,2]
[420946708,1776780643174,-198.690704,0.00013699,2]
[420946709,1776780643184,-198.690704,0.00013699,2]
[420946710,1776780643194,-198.690704,0.00013699,2]
[420946711,1776780643203,-198.690704,0.00013699,2]
[420946712,1776780643212,-198.690704,0.00013699,2]
[420946713,1776780643222,-198.690704,0.00013699,2]
[420946714,1776780643231,-198.690704,0.00013699,2]
[420946715,1776780643241,-198.690704,0.00013699,2]
[420946716,1776780643251,-198.690704,0.00013699,2]
[420946717,1776780643260,-198.690704,0.00013699,2]
[420946718,1776780643270,-198.690704,0.00013699,2]
[420946719,1776780643280,-198.690704,0.00013699,2]
[420946720,1776780643289,-198.690704,0.00013699,2]
[420946721,1776780643299,-198.690704,0.00013699,2]
[420946722,1776780643308,-198.690704,0.00013699,2]
[420946723,1776780643317,-198.690704,0.00013699,2]
[420946724,1776780643327,-198.690704,0.00013699,2]
[420946725,1776780643336,-198.690698,0.00013699,2]
[420946726,1776780643347,-257.850567,0.00013699,2]
[420946727,1776780643356,-151.0,0.00013699,2]
[420946728,1776780643366,-151.0,0.00013699,2]
[420946729,1776780643375,-151.0,0.00013699,2]
[420946730,1776780643385,-151.0,0.00013699,2]
[420946731,1776780643394,-151.0,0.00013699,2]
[420946732,1776780643404,-151.0,0.00013699,2]
[420946733,1776780643414,-151.0,0.00013699,2]
[420946734,1776780643423,-151.0,0.00013699,2]
[420946735,1776780643433,-151.0,0.00013699,2]
[420946736,1776780643442,-286.35805,0.00013699,2]
[420946737,1776780643452,-151.0,0.00013699,2]
[420946738,1776780643461,-151.0,0.00013699,2]
[420946739,1776780643471,-151.0,0.00013699,2]
[420946740,1776780643480,-151.0,0.00013699,2]
[420946741,1776780643490,-151.0,0.00013699,2]
[420946742,1776780643499,-151.0,0.00013699,2]
[420946743,1776780643508,-151.0,0.00013699,2]
[420946744,1776780643518,-151.0,0.00013699,2]
[420946745,1776780643527,-151.0,0.00013699,2]
[420946746,1776780643537,-151.0,0.00013699,2]
[420946747,1776780643546,-151.0,0.00013699,2]
[420946748,1776780643555,-151.0,0.00013699,2]
[420946749,1776780643564,-151.0,0.00013699,2]
[420946750,1776780643574,-151.0,0.00013699,2]
[420946751,1776780643583,-151.0,0.00013699,2]
[420946752,1776780643592,-151.0,0.00013699,2]
[420946753,1776780643601,-151.0,0.00013699,2]
[420946754,1776780643611,-151.0,0.00013699,2]
[420946755,1776780643621,-282.01,0.00013699,2]
[420946756,1776780643631,-625.914204,0.00013699,2]
[420946757,1776780643640,-625.914204,0.00013699,2]
[420946758,1776780643650,-625.914204,0.00013699,2]
[420946759,1776780643661,-625.914204,0.00013699,2]
[420946760,1776780643671,-625.914204,0.00013699,2]
[420946761,1776780643681,-625.914204,0.00013699,2]
[420946762,1776780643691,-625.914204,0.00013699,2]
[420946763,1776780643702,-625.914204,0.00013699,2]
[420946764,1776780643712,-625.914204,0.00013699,2]
[420946765,1776780643722,-625.914204,0.00013699,2]
[420946766,1776780643731,-625.914204,0.00013699,2]
[420946767,1776780643741,-625.914204,0.00013699,2]
[420946768,1776780643751,-625.914204,0.00013699,2]
[420946769,1776780643761,-625.914204,0.00013699,2]
[420946770,1776780643771,-625.914204,0.00013699,2]
[420946771,1776780643780,-625.914204,0.00013699,2]
[420946772,1776780643790,-625.914204,0.00013699,2]
[420946773,1776780643799,-625.914204,0.00013699,2]
[420946774,1776780643809,-625.914204,0.00013699,2]
[420946775,1776780643818,-625.914208,0.00013699,2]
[420946776,1776780643828,-151.0,0.00013699,2]
[420946777,1776780643838,-151.0,0.00013699,2]
[420946778,1776780643847,-151.0,0.00013699,2]
[420946779,1776780643857,-151.0,0.00013699,2]
[420946780,1776780643867,-151.0,0.00013699,2]
[420946781,1776780643876,-151.0,0.00013699,2]
[420946782,1776780643886,-151.0,0.00013699,2]
[420946783,1776780643895,-151.0,0.00013699,2]
[420946784,1776780643905,-151.0,0.00013699,2]
[420946785,1776780643914,-151.0,0.00013699,2]
[420946786,1776780643923,-151.0,0.00013699,2]
[420946787,1776780643933,-151.0,0.00013699,2]
[420946788,1776780643942,-151.0,0.00013699,2]
[420946789,1776780643951,-289.017542,0.00013699,2]
[420946790,1776780643961,-1190.0,0.00013699,2]
[420946791,1776780643971,-500.0,0.00013699,2]
[420946792,1776780643980,-500.0,0.00013699,2]
[420946793,1776780643990,-500.0,0.00013699,2]
[420946794,1776780643999,-500.0,0.00013699,2]
[420946795,1776780644009,-500.0,0.00013699,2]
[420946796,1776780644018,-500.0,0.00013699,2]
[420946797,1776780644028,-500.0,0.00013699,2]
[420946798,1776780644037,-340.61630391,0.00013699,2]
[420946799,1776780644047,-500.0,0.00013699,2]
[420946800,1776780644057,-161.85594521,0.00013699,2]
[420946801,1776780644066,-262.37230053,0.00013699,2]
[420946802,1776780644076,-500.0,0.00013699,2]
[420946803,1776780644085,-500.0,0.00013699,2]
[420946804,1776780644095,-150.0,0.00013699,2]
[420946805,1776780644104,-500.0,0.00013699,2]
[420946806,1776780644113,-505.01796995,0.00013699,2]
[420946807,1776780644124,-500.0,0.00013699,2]
[420946808,1776780644134,-500.0,0.00013699,2]
[420946809,1776780644144,-500.0,0.00013699,2]
[420946810,1776780644154,-500.0,0.00013699,2]
[420946811,1776780644164,-308.33961058,0.00013699,2]
[420946812,1776780644174,-186.26962918,0.00013699,2]
[420946813,1776780644183,-500.0,0.00013699,2]
[420946814,1776780644193,-500.0,0.00013699,2]
[420946815,1776780644202,-399.99062061,0.00013699,2]
[420946816,1776780644212,-500.0,0.00013699,2]
[420946817,1776780644221,-150.0,0.00013699,2]
[420946818,1776780644230,-500.0,0.00013699,2]
[420946819,1776780644240,-500.0,0.00013699,2]
[420946820,1776780644249,-500.0,0.00013699,2]
[420946821,1776780644259,-500.0,0.00013699,2]
[420946822,1776780644268,-500.0,0.00013699,2]
[420946823,1776780644278,-500.0,0.00013699,2]
[420946824,1776780644287,-500.0,0.00013699,2]
[420946825,1776780644296,-500.0,0.00013699,2]
[420946826,1776780644305,-500.0,0.00013699,2]
[420946827,1776780644315,-320.10586951,0.00013699,2]
[420946828,1776780644324,-573.07364277,0.00013699,2]
[420946829,1776780644333,-500.16473198,0.00013699,2]
[420946830,1776780644342,-500.0,0.00013699,2]
[420946831,1776780644352,-500.0,0.00013699,2]
[420946832,1776780644361,-220.07278529,0.00013699,2]
[420946833,1776780644370,-624.00351645,0.00013699,2]
[420946834,1776780644380,-500.0,0.00013699,2]
[420946835,1776780644390,-500.0,0.00013699,2]
[420946836,1776780644399,-500.0,0.00013699,2]
[420946837,1776780644410,-620.85129066,0.00013699,2]
[420946838,1776780644419,-500.0,0.00013699,2]
[420946839,1776780644429,-500.0,0.00013699,2]
[420946840,1776780644438,-500.0,0.00013699,2]
[420946841,1776780644447,-454.80909649,0.00013699,2]
[420946842,1776780644456,-500.0,0.00013699,2]
[420946843,1776780644466,-500.0,0.00013699,2]
[420946844,1776780644475,-500.0,0.00013699,2]
[420946845,1776780644485,-500.0,0.00013699,2]
[420946846,1776780644494,-500.0,0.00013699,2]
[420946847,1776780644504,-500.0,0.00013699,2]
[420946848,1776780644513,-500.0,0.00013699,2]
[420946849,1776780644523,-500.0,0.00013699,2]
[420946850,1776780644532,-500.0,0.00013699,2]
[420946851,1776780644542,-500.0,0.00013699,2]
[420946852,1776780644551,-251.46729855,0.00013699,2]
[420946853,1776780644560,-2000.0,0.00013699,7]
[420946854,1776780644570,-500.0,0.00013699,2]
[420946855,1776780644579,-500.0,0.00013699,2]
[420946856,1776780644589,-500.0,0.00013699,2]
[420946858,1776780644599,-500.0,0.00013699,2]
[420946860,1776780644608,-500.0,0.00013699,2]
[420946861,1776780644618,-500.0,0.00013699,2]
[420946862,1776780644627,-500.0,0.00013699,2]
[420946863,1776780644637,-500.0,0.00013699,2]
[420946864,1776780644646,-500.0,0.00013699,2]
[420946865,1776780644656,-1000.0,0.00013699,2]
[420946866,1776780644665,-2210.0,0.00013718,2]
[420946867,1776780644675,-645.0,0.00013718,2]
[420946868,1776780644684,-1409.0,0.00013718,2]
[420946869,1776780644694,-357.114,0.00013718,2]
[420946871,1776780644703,-184.0,0.00013718,2]
[420946872,1776780644712,-441.0,0.00013718,2]
[420946874,1776780644722,-6070.71715342,0.00013738,2]
[420946875,1776780644731,-165.58162054,0.00013782,2]
[420946876,1776780644740,-363.0,0.00013807,2]
[420946877,1776780644750,-1000.0,0.00014,14]
[420946879,1776780644759,-2876.18991768,0.00014113,2]
[420946880,1776780644768,-2000.0,0.00014183,7]
[420946881,1776780644778,-1190.0,0.00014247,2]
[420946882,1776780644818,-1000.0,0.00014247,2]
[420946883,1776780644827,-1000.0,0.00014247,2]
[420946884,1776780644836,-1000.0,0.00014247,2]
[420946885,1776780644846,-1000.0,0.00014247,2]
[420946886,1776780644855,-1000.0,0.00014247,2]
[420946887,1776780644864,-1000.0,0.00014247,2]
[420946888,1776780644873,-1000.0,0.00014247,2]
[420946889,1776780644882,-1000.0,0.00014247,2]
[420946890,1776780644891,-1000.0,0.00014247,2]
[420946891,1776780644900,-500.60553527,0.00014247,2]
[420946892,1776780644910,-250.0,0.00014247,2]
[420946893,1776780644919,-1000.0,0.00014247,2]
[420946894,1776780644929,-1000.0,0.00014247,2]
[420946895,1776780644938,-1000.0,0.00014247,2]
[420946896,1776780644947,-930.89331449,0.00014247,2]
[420946897,1776780644957,-1000.0,0.00014247,2]
[420946898,1776780644966,-1000.0,0.00014247,2]
[420946899,1776780644975,-1000.0,0.00014247,2]
[420946900,1776780644985,-1000.0,0.00014247,2]
[420946901,1776780644994,-1000.0,0.00014247,2]
[420946902,1776780645003,-250.0,0.00014247,2]
[420946903,1776780645012,-1000.0,0.00014247,2]
[420946904,1776780645021,-1000.0,0.00014247,2]
[420946905,1776780645031,-1000.0,0.00014247,2]
[420946906,1776780645040,-1000.0,0.00014247,2]
[420946907,1776780645049,-1000.0,0.00014247,2]
[420946908,1776780645058,-1000.0,0.00014247,2]
[420946909,1776780645067,-1000.0,0.00014247,2]
[420946910,1776780645076,-288.38227708,0.00014247,2]
[420946911,1776780645085,-1000.0,0.00014247,2]
[420946912,1776780645094,-500.76588622,0.00014247,2]
[420946913,1776780645103,-1000.0,0.00014247,2]
[420946914,1776780645112,-1000.0,0.00014247,2]
[420946915,1776780645121,-1000.0,0.00014247,2]
[420946916,1776780645130,-1000.0,0.00014247,2]
[420946917,1776780645139,-1001.07312317,0.00014247,2]
[420946918,1776780645148,-1000.0,0.00014247,2]
[420946919,1776780645157,-1000.0,0.00014247,2]
[420946920,1776780645166,-1000.0,0.00014247,2]
[420946921,1776780645175,-968.00738664,0.00014247,2]
[420946922,1776780645185,-1000.0,0.00014247,2]
[420946923,1776780645194,-1000.0,0.00014247,2]
[420946924,1776780645203,-1000.0,0.00014247,2]
[420946925,1776780645212,-501.37092374,0.00014247,2]
[420946926,1776780645221,-1000.0,0.00014247,2]
[420946927,1776780645231,-500.70382234,0.00014247,2]
[420946928,1776780645240,-501.08157033,0.00014247,2]
[420946929,1776780645249,-1008.79811341,0.00014247,2]
[420946930,1776780645259,-1000.0,0.00014247,2]
[420946931,1776780645268,-1000.0,0.00014247,2]
[420946932,1776780645278,-1000.72940755,0.00014247,2]
[420946933,1776780645288,-1000.0,0.00014247,2]
[420946934,1776780645297,-426.68304742,0.00014247,2]
[420946935,1776780645306,-1000.0,0.00014247,2]
[420946936,1776780645315,-1000.0,0.00014247,2]
[420946937,1776780645325,-468.81027814,0.00014247,2]
[420946938,1776780645334,-155.0,0.0001426,2]
[420946939,1776780645343,-227.0,0.00014268,2]
[420946940,1776780645352,-167.0,0.00014268,2]
[420946941,1776780645361,-1150.0,0.0001432,2]
[420946942,1776780645371,-1150.0,0.0001432,2]
[420946943,1776780645380,-1150.0,0.0001432,2]
[420946944,1776780645390,-1150.0,0.0001432,2]
[420946945,1776780645399,-1150.0,0.0001432,2]
[420946946,1776780645408,-1150.0,0.0001432,2]
[420946947,1776780645417,-1150.0,0.0001432,2]
[420946948,1776780645427,-1150.0,0.0001432,2]
[420946949,1776780645436,-1150.0,0.0001432,2]
[420946950,1776780645446,-808.0,0.0001432,2]
[420946951,1776780645455,-600.0,0.00014336,2]
[420946952,1776780645465,-1500.0,0.00014339,2]
[420946953,1776780645474,-1500.0,0.00014339,2]
[420946954,1776780645483,-1500.0,0.00014339,2]
[420946955,1776780645492,-1500.0,0.00014339,2]
[420946956,1776780645502,-1500.0,0.00014339,2]
[420946957,1776780645511,-1500.0,0.00014339,2]
[420946958,1776780645520,-1500.0,0.00014339,2]
[420946959,1776780645529,-1500.0,0.00014339,2]
[420946960,1776780645538,-1500.0,0.00014339,2]
[420946962,1776780645547,-1213.0,0.00014339,2]
[420946963,1776780645557,-1450.0,0.00014403,2]
[420946964,1776780645566,-1450.0,0.00014403,2]
[420946966,1776780645575,-1450.0,0.00014403,2]
[420946968,1776780645585,-1450.0,0.00014403,2]
[420946969,1776780645594,-1450.0,0.00014403,2]
[420946970,1776780645604,-1450.0,0.00014403,2]
[420946971,1776780645614,-1450.0,0.00014403,2]
[420946972,1776780645623,-1450.0,0.00014403,2]
[420946974,1776780645633,-1450.0,0.00014403,2]
[420946976,1776780645643,-1092.0,0.00014403,2]
[420946978,1776780645652,-167.45779877,0.00014478,2]
[420946980,1776780645661,-33321.0,0.000146,7]
[420946982,1776780645670,-620.0,0.00014605,2]
[420946984,1776780645679,-492.0,0.00014605,2]
[420946986,1776780645688,-665.0,0.00014605,2]
[420946988,1776780645698,-540.0,0.00014605,2]
[420946989,1776780645707,-257.850567,0.00014658,2]
[420946991,1776780645716,-2374.58374735,0.00014661,2]
[420946992,1776780645725,-2000.0,0.00014668,7]
[420946993,1776780645734,-1500.0,0.00014795,2]
[420946994,1776780645743,-1500.0,0.00014795,2]
[420946995,1776780645752,-1500.0,0.00014795,2]
[420946997,1776780645761,-1500.0,0.00014795,2]
[420946999,1776780645770,-1500.0,0.00014795,2]
[420947000,1776780645779,-471.22500638,0.00014795,2]
[420947001,1776780645788,-1500.0,0.00014795,2]
[420947002,1776780645797,-1500.0,0.00014795,2]
[420947003,1776780645806,-1500.0,0.00014795,2]
[420947004,1776780645815,-1500.0,0.00014795,2]
[420947005,1776780645824,-350.0,0.00014795,2]
[420947006,1776780645834,-1170.2302316,0.00014795,2]
[420947007,1776780645844,-1500.0,0.00014795,2]
[420947008,1776780645853,-1113.03165911,0.00014795,2]
[420947009,1776780645863,-1500.0,0.00014795,2]
[420947010,1776780645872,-674.85216585,0.00014795,2]
[420947011,1776780645881,-1500.0,0.00014795,2]
[420947012,1776780645891,-909.83915438,0.00014795,2]
[420947013,1776780645900,-250.23202592,0.00014795,2]
[420947014,1776780645910,-1500.0,0.00014795,2]
[420947015,1776780645919,-1500.0,0.00014795,2]
[420947016,1776780645929,-1500.7940036,0.00014795,2]
[420947017,1776780645938,-1500.0,0.00014795,2]
[420947018,1776780645948,-1501.48785887,0.00014795,2]
[420947019,1776780645958,-1500.0,0.00014795,2]
[420947020,1776780645967,-1500.0,0.00014795,2]
[420947021,1776780645976,-1565.80006524,0.00014795,2]
[420947022,1776780645986,-1500.0,0.00014795,2]
[420947023,1776780645995,-337.38238435,0.00014795,2]
[420947024,1776780646005,-1259.71167229,0.00014795,2]
[420947025,1776780646015,-1500.0,0.00014795,2]
[420947026,1776780646025,-1500.0,0.00014795,2]
[420947027,1776780646034,-1500.0,0.00014795,2]
[420947028,1776780646043,-318.09489962,0.00014795,2]
[420947029,1776780646053,-1500.0,0.00014795,2]
[420947030,1776780646062,-918.95751326,0.00014795,2]
[420947031,1776780646071,-1500.0,0.00014795,2]
[420947032,1776780646081,-1500.0,0.00014795,2]
[420947033,1776780646091,-1500.0,0.00014795,2]
[420947034,1776780646100,-1500.0,0.00014795,2]
[420947036,1776780646110,-1500.0,0.00014795,2]
[420947037,1776780646119,-10000.0,0.00014799,2]
[420947038,1776780646128,-1002.56,0.000148,3]
[420947039,1776780646138,-363.0,0.00014807,2]
[420947040,1776780646147,-83982.84463401,0.000149,2]
[420947041,1776780646156,-426.91358025,0.000149,2]
[420947042,1776780646166,-426.91358025,0.000149,2]
[420947043,1776780646176,-426.91358025,0.000149,2]
[420947044,1776780646185,-28887.96030939,0.00015,7]
[420947045,1776780646195,-160.0,0.00015,7]
[420947046,1776780646204,-10160.15346141,0.00015,2]
[420947048,1776780646213,-358.01802413,0.00015,2]
[420947050,1776780646223,-160.0,0.00015,7]
[420947052,1776780646233,-990.549375,0.00015068,2]
[420947054,1776780646243,-203.99478358,0.00015068,2]
[420947056,1776780646252,-300.0,0.000151,2]
[420947058,1776780646262,-2000.0,0.00015153,7]
[420947060,1776780646271,-10160.15346141,0.000152,2]
[420947062,1776780646280,-358.01802413,0.000152,2]
[420947063,1776780646290,-228.06216312,0.00015205,30]
[420947064,1776780646299,-227.0,0.00015268,2]
[420947065,1776780646309,-167.0,0.00015268,2]
[420947066,1776780646318,-228.06216312,0.00015288,30]
[420947067,1776780646327,-10160.15346141,0.000153,2]
[420947068,1776780646336,-358.01802413,0.000153,2]
[420947069,1776780646346,-160.0,0.00015328,3]
[420947070,1776780646355,-228.06216312,0.00015342,30]
[420947071,1776780646364,-436.86356709,0.00015342,2]
[420947072,1776780646374,-357.1636405,0.00015342,2]
[420947073,1776780646383,-2000.0,0.00015342,2]
[420947074,1776780646392,-1018.60125656,0.00015342,2]
[420947075,1776780646402,-2000.0,0.00015342,2]
[420947076,1776780646411,-2000.0,0.00015342,2]
[420947077,1776780646420,-1140.0,0.00015342,2]
[420947078,1776780646430,-169.20972357,0.00015342,2]
[420947079,1776780646441,-2000.0,0.00015342,2]
[420947080,1776780646450,-991.0198905,0.00015342,2]
[420947081,1776780646459,-250.26160094,0.00015342,2]
[420947082,1776780646469,-2000.0,0.00015342,2]
[420947083,1776780646478,-2000.0,0.00015342,2]
[420947084,1776780646488,-501.45288308,0.00015342,2]
[420947085,1776780646497,-558.91578083,0.00015342,2]
[420947086,1776780646506,-2000.0,0.00015342,2]
[420947087,1776780646516,-500.78555824,0.00015342,2]
[420947088,1776780646525,-2000.0,0.00015342,2]
[420947089,1776780646534,-2000.0,0.00015342,2]
[420947090,1776780646544,-2000.0,0.00015342,2]
[420947091,1776780646553,-2000.0,0.00015342,2]
[420947092,1776780646563,-2000.0,0.00015342,2]
[420947093,1776780646572,-2000.0,0.00015342,2]
[420947094,1776780646582,-2000.0,0.00015342,2]
[420947095,1776780646592,-2000.0,0.00015342,2]
[420947096,1776780646602,-350.56858437,0.00015342,2]
[420947097,1776780646611,-1500.0,0.00015342,2]
[420947098,1776780646621,-1001.07640574,0.00015342,2]
[420947099,1776780646630,-2000.0,0.00015342,2]
[420947100,1776780646639,-576.08677118,0.00015409,2]
[420947101,1776780646649,-228.06216312,0.00015425,30]
[420947102,1776780646658,-10160.15346141,0.000155,2]
[420947103,1776780646667,-358.01802413,0.000155,2]
[420947104,1776780646677,-228.06216312,0.00015507,30]
[420947105,1776780646686,-228.06216312,0.00015562,30]
[420947106,1776780646696,-10160.15346141,0.000156,2]
[420947107,1776780646706,-358.01802413,0.000156,2]
[420947108,1776780646715,-620.0,0.00015605,2]
[420947109,1776780646724,-492.0,0.00015605,2]
[420947110,1776780646734,-665.0,0.00015605,2]
[420947111,1776780646743,-540.0,0.00015605,2]
[420947112,1776780646753,-2000.0,0.00015638,7]
[420947113,1776780646762,-228.06216312,0.00015644,30]
[420947114,1776780646772,-228.06216312,0.00015726,30]
[420947115,1776780646782,-10160.15346141,0.000158,2]
[420947116,1776780646791,-378.5736615,0.00015807,2]